bitfinex/quotes_SOLUSD_20250507
["timestamp","ask_amount","ask_price","bid_price","bid_amount"]
[1746633816574,138.1,145.63,145.6,33.99127462]
[1746633816987,138.1,145.63,145.59,56.86846535]
[1746633817170,172.09127462,145.63,145.59,90.85973997]
[1746633818186,33.99127462,145.62,145.59,50.0]
[1746633820188,144.96672621,145.63,145.59,50.0]
[1746633820393,178.95800083,145.63,145.59,83.99127462]
[1746633823586,178.95800083,145.63,145.59,90.85984256]
[1746633823789,166.20346819,145.63,145.59,78.10530992]
[1746633827098,166.20346819,145.63,145.59,71.23674198]
[1746633827398,21.23674198,145.61,145.59,50.0]
[1746633827599,21.23674198,145.62,145.59,50.0]
[1746633829900,28.10415707,145.62,145.59,50.0]
[1746633832006,21.23674198,145.61,145.58,16.24]
[1746633833293,6.86741509,145.62,145.58,37.47674198]
[1746633833599,138.1,145.63,145.59,21.23674198]
[1746633833808,26.0,145.61,145.6,21.23674198]
[1746633833990,138.1,145.63,145.6,21.23674198]
[1746633834310,164.1,145.63,145.6,21.23674198]
[1746633835708,185.33674198,145.63,145.59,78.10527288]
[1746633835887,192.20354872,145.63,145.59,78.10527288]
[1746633837600,54.10354872,145.63,145.59,78.10527288]
[1746633838411,47.23674198,145.63,145.59,78.10527288]
[1746633838713,26.0,145.63,145.61,21.23674198]
[1746633839093,136.8,145.65,145.62,21.23674198]
[1746633839292,136.8,145.65,145.63,21.23674198]
[1746633839700,136.8,145.69,145.64,21.23674198]
[1746633839991,26.0,145.66,145.65,21.23674198]
[1746633840185,136.8,145.68,145.65,28.10249285]
[1746633840385,136.8,145.68,145.65,21.23674198]
[1746633840581,21.23674198,145.66,145.63,66.38]
[1746633841106,21.23674198,145.65,145.63,66.38]
[1746633841499,21.23674198,145.64,145.61,50.0]
[1746633841699,21.23674198,145.63,145.61,50.0]
[1746633842308,21.23674198,145.63,145.6,6.86788757]
[1746633846719,6.86595085,145.65,145.6,6.86788757]
[1746633846925,21.23674198,145.63,145.6,6.86788757]
[1746633847709,21.23674198,145.65,145.6,28.10462955]
[1746633849114,21.23674198,145.64,145.6,28.10462955]
[1746633849320,21.23674198,145.61,145.59,66.38]
[1746633849711,21.23674198,145.61,145.59,73.24856145]
[1746633849912,21.23674198,145.62,145.59,73.24856145]
[1746633850602,21.23674198,145.61,145.59,16.38]
[1746633850802,21.23674198,145.6,145.59,16.38]
[1746633851001,21.23674198,145.62,145.59,16.38]
[1746633851203,136.8,145.63,145.6,21.23674198]
[1746633852612,136.8,145.63,145.61,21.23674198]
[1746633853105,136.8,145.63,145.61,71.23674198]
[1746633853404,136.8,145.63,145.62,6.86718857]
[1746633854525,136.8,145.63,145.61,50.0]
[1746633854828,158.03674198,145.63,145.61,50.0]
[1746633855034,136.8,145.63,145.61,50.0]
[1746633855844,158.03674198,145.63,145.6,6.86790621]
[1746633856000,164.90346701,145.63,145.59,66.38]
[1746633856205,158.03674198,145.63,145.59,73.24850443]
[1746633857427,164.90363968,145.63,145.59,73.24850443]
[1746633857930,21.23674198,145.62,145.59,73.24850443]
[1746633858228,21.23674198,145.61,145.59,66.38]
[1746633858610,21.23674198,145.61,145.59,16.38]
[1746633859835,21.23674198,145.61,145.57,56.86954401]
[1746633860328,6.86718925,145.62,145.57,56.86954401]
[1746633860536,143.66691471,145.63,145.58,21.23674198]
[1746633860706,21.23674198,145.62,145.58,21.23674198]
[1746633861540,136.8,145.61,145.58,28.10562214]
[1746633866253,158.03674198,145.61,145.57,56.86932121]
[1746633866549,21.23674198,145.6,145.57,50.0]
[1746633866853,158.03674198,145.59,145.56,16.38]
[1746633867011,21.23674198,145.58,145.56,16.38]
[1746633868147,136.8,145.59,145.56,16.38]
[1746633868442,21.23674198,145.58,145.56,16.38]
[1746633870442,21.23674198,145.57,145.56,16.38]
[1746633870814,158.03674198,145.57,145.54,11.18083203]
[1746633871015,21.23674198,145.56,145.54,11.18083203]
[1746633871319,21.23674198,145.55,145.54,11.18083203]
[1746633872619,28.10723322,145.55,145.54,11.18083203]
[1746633872812,54.10723322,145.55,145.54,11.18083203]
[1746633873240,72.75688208,145.55,145.54,11.18083203]
[1746633873617,25.5201401,145.55,145.54,11.18083203]
[1746633873947,46.75688208,145.55,145.54,11.18083203]
[1746633874522,6.8723799,145.51,145.47,16.4]
[1746633874726,28.10912188,145.51,145.47,16.4]
[1746633875027,26.0,145.48,145.44,56.87557405]
[1746633875227,47.23674198,145.48,145.44,78.1123925]
[1746633875430,26.0,145.48,145.44,56.87565052]
[1746633875647,47.23674198,145.48,145.44,56.87565052]
[1746633875825,47.23674198,145.48,145.44,78.1123925]
[1746633876221,26.0,145.48,145.44,78.1123925]
[1746633876447,21.23674198,145.49,145.44,56.87565052]
[1746633876749,21.23674198,145.48,145.44,50.0]
[1746633876955,136.8,145.47,145.44,50.0]
[1746633877255,158.03674198,145.47,145.42,280.55629553]
[1746633877625,136.8,145.47,145.44,21.23674198]
[1746633878015,136.8,145.47,145.45,71.23674198]
[1746633878219,136.8,145.47,145.46,21.23674198]
[1746633878418,162.8,145.5,145.47,50.0]
[1746633878621,162.8,145.5,145.49,21.23674198]
[1746633878821,162.8,145.5,145.48,16.4]
[1746633879363,136.8,145.5,145.49,71.23674198]
[1746633879844,54.10831927,145.53,145.49,71.23674198]
[1746633880425,54.10831927,145.53,145.49,50.0]
[1746633880739,21.23674198,145.52,145.49,50.0]
[1746633881744,28.10871424,145.52,145.49,50.0]
[1746633883059,6.87197226,145.52,145.49,71.23674198]
[1746633883232,54.10836585,145.53,145.49,71.23674198]
[1746633884946,21.23674198,145.52,145.49,50.0]
[1746633885134,28.10887734,145.52,145.49,50.0]
[1746633887455,32.8716447,145.53,145.49,71.23674198]
[1746633887749,47.23674198,145.53,145.49,78.11003963]
[1746633888056,26.0,145.53,145.51,71.23674198]
[1746633888445,26.0,145.53,145.51,50.0]
[1746633888646,54.10823714,145.53,145.51,50.0]
[1746633889533,162.8,145.55,145.51,50.0]
[1746633889732,190.90742113,145.55,145.51,71.23674198]
[1746633889956,190.90742113,145.55,145.51,50.0]
[1746633890860,21.23674198,145.54,145.51,50.0]
[1746633891570,28.10775842,145.54,145.51,50.0]
[1746633893863,28.10775842,145.54,145.49,71.23674198]
[1746633894043,21.23674198,145.53,145.49,71.23674198]
[1746633894244,21.23674198,145.51,145.49,50.0]
[1746633894463,21.23674198,145.52,145.49,50.0]
[1746633894649,136.8,145.53,145.5,21.23674198]
[1746633895153,158.03674198,145.53,145.51,50.0]
[1746633895353,136.8,145.53,145.51,50.0]
[1746633895659,158.03674198,145.53,145.49,50.0]
[1746633895962,164.90846304,145.53,145.49,71.23674198]
[1746633896142,26.0,145.55,145.49,71.23674198]
[1746633896143,26.0,145.55,145.51,21.23674198]
[1746633896348,47.23674198,145.55,145.52,50.0]
[1746633896658,26.0,145.55,145.52,50.0]
[1746633897539,47.23674198,145.55,145.52,50.0]
[1746633898267,54.10726571,145.55,145.52,50.0]
[1746633898573,21.23674198,145.54,145.52,50.0]
[1746633899557,21.23674198,145.53,145.5,66.4]
[1746633899756,21.23674198,145.52,145.5,66.4]
[1746633900261,21.23674198,145.51,145.48,50.0]
[1746633900451,21.23674198,145.5,145.48,50.0]
[1746633900971,21.23674198,145.49,145.46,68.0023]
[1746633901270,21.23674198,145.49,145.46,66.4]
[1746633901670,136.8,145.5,145.46,66.4]
[1746633901973,21.23674198,145.49,145.46,66.4]
[1746633903875,21.23674198,145.48,145.46,66.4]
[1746633904050,21.23674198,145.47,145.46,16.4]
[1746633904371,21.23674198,145.47,145.44,50.0]
[1746633904757,21.23674198,145.47,145.44,56.87566523]
[1746633904958,21.23674198,145.47,145.44,50.0]
[1746633905972,21.23674198,145.47,145.44,56.87563364]
[1746633906356,136.8,145.5,145.46,50.0]
[1746633906551,136.8,145.5,145.47,6.8742696]
[1746633906951,158.03674198,145.5,145.46,78.11126242]
[1746633907257,158.03674198,145.5,145.46,94.51126242]
[1746633907850,158.03674198,145.5,145.46,73.27452044]
[1746633910182,136.8,145.5,145.46,94.51126242]
[1746633910483,158.03674198,145.5,145.46,94.51126242]
[1746633910776,158.03674198,145.5,145.46,73.27452044]
[1746633912686,21.23674198,145.49,145.46,66.4]
[1746633912870,21.23674198,145.48,145.46,16.4]
[1746633913062,21.23674198,145.47,145.46,16.4]
[1746633913980,21.23674198,145.47,145.44,50.0]
[1746633914283,21.23674198,145.45,145.42,50.0]
[1746633914493,21.23674198,145.44,145.42,50.0]
[1746633915060,6.8743256,145.47,145.42,50.0]
[1746633915270,21.23674198,145.44,145.42,50.0]
[1746633916154,21.23674198,145.44,145.41,17.3747966]
[1746633917267,28.11216777,145.45,145.41,38.61153858]
[1746633917464,28.11216777,145.45,145.41,17.3747966]
[1746633917465,21.23674198,145.44,145.41,17.3747966]
[1746633918185,21.23674198,145.45,145.41,45.48856699]
[1746633918383,54.11177425,145.46,145.42,21.23674198]
[1746633918605,136.8,145.45,145.42,21.23674198]
[1746633919087,158.03674198,145.45,145.41,45.48856699]
[1746633919771,158.03674198,145.45,145.41,24.25182501]
[1746633919989,158.03674198,145.45,145.41,45.48856699]
[1746633920286,158.03674198,145.45,145.43,21.23674198]
[1746633920287,136.8,145.45,145.43,21.23674198]
[1746633920486,136.8,145.45,145.44,71.23674198]
[1746633923013,136.8,145.45,145.44,50.0]
[1746633923402,136.8,145.45,145.44,78.11242954]
[1746633923643,32.8729111,145.5,145.44,78.11242954]
[1746633923906,136.8,145.49,145.46,21.23674198]
[1746633924403,164.91008176,145.49,145.45,21.23674198]
[1746633925407,5.07253034,145.48,145.45,21.23674198]
[1746633926007,5.07253034,145.47,145.45,21.23674198]
[1746633926385,5.07253034,145.47,145.44,56.87568756]
[1746633926600,5.07253034,145.47,145.44,78.11242954]
[1746633927002,5.07253034,145.46,145.44,78.11242954]
[1746633927202,5.07253034,145.46,145.45,21.23674198]
[1746633928915,164.91007149,145.49,145.45,21.23674198]
[1746633929293,164.91007149,145.49,145.45,28.1118515]
[1746633929507,164.91007149,145.49,145.45,21.23674198]
[1746633930103,5.06971137,145.48,145.45,21.23674198]
[1746633930615,5.06971137,145.48,145.44,56.87547299]
[1746633930616,33.18034596,145.48,145.44,78.11221497]
[1746633930913,21.23674198,145.47,145.44,50.0]
[1746633931417,21.23674198,145.46,145.42,56.87656967]
[1746633931621,21.23674198,145.44,145.42,50.0]
[1746633932501,21.23674198,145.44,145.41,17.3747966]
[1746633932801,21.23674198,145.42,145.41,17.3747966]
[1746633933210,158.03674198,145.43,145.41,17.3747966]
[1746633933412,136.8,145.43,145.41,17.3747966]
[1746633933725,158.03674198,145.43,145.41,17.3747966]
[1746633934426,158.03674198,145.43,145.41,16.3347966]
[1746633934427,21.23674198,145.42,145.41,16.3347966]
[1746633934599,26.3055988,145.42,145.37,94.43564755]
[1746633934793,158.03674198,145.41,145.37,73.19890557]
[1746633935020,158.03674198,145.41,145.37,94.43564755]
[1746633935234,158.03674198,145.41,145.37,66.32]
[1746633935404,158.03674198,145.41,145.37,94.43569111]
[1746633935805,5.06885682,145.4,145.38,21.23674198]
[1746633936304,5.06885682,145.4,145.37,94.43569111]
[1746633936625,5.06885682,145.4,145.38,21.23674198]
[1746633936827,136.8,145.41,145.39,21.23674198]
[1746633936997,17.1890723,145.45,145.41,50.0]
[1746633936998,136.8,145.45,145.41,50.0]
[1746633937193,136.8,145.45,145.42,21.23674198]
[1746633937698,162.8,145.45,145.42,21.23674198]
[1746633938136,5.0624394,145.44,145.42,21.23674198]
[1746633938728,5.06342486,145.43,145.42,21.23674198]
[1746633938935,5.06342486,145.43,145.42,20.23674198]
[1746633939132,5.06342143,145.43,145.42,27.11337518]
[1746633939726,5.06342143,145.43,145.42,40.93298604]
[1746633939928,5.06342143,145.43,145.41,56.87664411]
[1746633940113,5.06342143,145.43,145.41,90.93299695]
[1746633941010,196.85635284,145.45,145.43,50.0]
[1746633941011,162.8,145.45,145.43,50.0]
[1746633941326,162.8,145.45,145.43,84.05635284]
[1746633941830,5.06512013,145.44,145.43,84.05635284]
[1746633942134,5.06512013,145.44,145.43,50.0]
[1746633942423,5.06512013,145.44,145.42,16.32]
[1746633943132,11.94098256,145.44,145.42,16.32]
[1746633943347,39.12147297,145.43,145.4,50.0]
[1746633943837,34.05635284,145.43,145.4,50.0]
[1746633945145,6.8766332,145.42,145.4,50.0]
[1746633945823,34.05635284,145.43,145.4,50.0]
[1746633945824,40.93255746,145.43,145.4,50.0]
[1746633946235,5.07004179,145.42,145.4,50.0]
[1746633947436,5.07004179,145.42,145.39,34.05635284]
[1746633947739,46.00314087,145.42,145.38,107.2548166]
[1746633947935,34.05635284,145.41,145.38,73.19846376]
[1746633948646,34.05635284,145.42,145.38,107.2548166]
[1746633949045,40.93311228,145.42,145.38,107.2548166]
[1746633949231,5.06881092,145.41,145.38,107.2548166]
[1746633950140,5.06881092,145.41,145.39,34.05635284]
[1746633950441,40.93273195,145.43,145.39,34.05635284]
[1746633951538,5.06862893,145.42,145.4,34.05635284]
[1746633951939,5.06862893,145.42,145.4,40.93370665]
[1746633952135,5.06862893,145.42,145.41,34.05635284]
[1746633953239,5.06862893,145.42,145.41,40.93345895]
[1746633954961,5.06862893,145.42,145.41,41.07562052]
[1746633955539,66.93111322,145.46,145.42,50.0]
[1746633955737,66.93111322,145.46,145.42,84.05635284]
[1746633955936,60.05635284,145.46,145.42,84.05635284]
[1746633956140,66.93115473,145.46,145.42,84.05635284]
[1746633959844,54.16144147,145.46,145.42,71.28663958]
[1746633960347,32.87480189,145.46,145.43,21.28663958]
[1746633960933,32.87480189,145.46,145.42,71.28663958]
[1746633961132,54.16144147,145.46,145.42,50.0]
[1746633961529,54.16144147,145.46,145.42,71.28663958]
[1746633963050,32.87480189,145.46,145.42,71.28663958]
[1746633963961,32.87480189,145.46,145.43,21.28663958]
[1746633964758,32.87480189,145.46,145.42,71.28663958]
[1746633965948,153.98551055,145.48,145.45,71.28663958]
[1746633965949,136.8,145.48,145.45,71.28663958]
[1746633966164,136.8,145.48,145.47,21.28663958]
[1746633966462,136.8,145.51,145.47,71.28663958]
[1746633966667,136.8,145.51,145.5,21.28663958]
[1746633968870,136.8,145.51,145.47,50.0]
[1746633969168,136.8,145.51,145.46,16.28]
[1746633969169,21.28663958,145.49,145.46,16.28]
[1746633969365,136.8,145.5,145.46,16.28]
[1746633969366,158.08663958,145.5,145.46,16.28]
[1746633969533,21.28663958,145.49,145.46,16.28]
[1746633969934,21.28663958,145.48,145.46,16.28]
[1746633970470,162.8,145.5,145.46,16.28]
[1746633970471,21.28663958,145.49,145.46,16.28]
[1746633970840,28.16013115,145.49,145.46,16.28]
[1746633971842,40.91814182,145.49,145.46,16.28]
[1746633972979,34.04465025,145.48,145.46,16.28]
[1746633973353,196.84465025,145.47,145.43,50.0]
[1746633973549,34.04465025,145.44,145.42,16.28]
[1746633973776,34.04465025,145.44,145.39,6.87779781]
[1746633973777,170.84465025,145.43,145.39,50.0]
[1746633974084,34.04465025,145.42,145.39,50.0]
[1746633974255,136.8,145.43,145.39,84.04465025]
[1746633974575,136.8,145.43,145.41,84.04465025]
[1746633976380,136.8,145.43,145.41,90.92169581]
[1746633977168,136.8,145.43,145.41,84.04465025]
[1746633979065,136.8,145.43,145.41,50.0]
[1746633980370,177.72088383,145.43,145.39,50.0]
[1746633980792,34.04465025,145.42,145.39,50.0]
[1746633981393,6.87710611,145.41,145.39,50.0]
[1746633982166,40.92175636,145.41,145.38,16.28]
[1746633982578,26.0,145.39,145.38,16.28]
[1746633982785,162.8,145.4,145.34,66.28]
[1746633982984,34.04465025,145.36,145.34,16.28]
[1746633983169,136.8,145.36,145.34,16.28]
[1746633983371,177.72444515,145.36,145.34,16.28]
[1746633983892,136.8,145.36,145.34,16.28]
[1746633984196,177.72420087,145.36,145.34,16.28]
[1746633984566,177.72420087,145.36,145.3,50.0]
[1746633984567,34.04465025,145.35,145.31,34.04465025]
[1746633985275,34.04465025,145.34,145.3,50.0]
[1746633985481,177.72420087,145.36,145.32,34.04465025]
[1746633986185,136.8,145.36,145.32,34.04465025]
[1746633986370,136.8,145.36,145.32,84.04465025]
[1746633986571,136.8,145.36,145.33,34.04465025]
[1746633986893,136.8,145.36,145.35,34.04465025]
[1746633987690,26.0,145.37,145.35,40.92459521]
[1746633987885,136.8,145.4,145.36,84.04465025]
[1746633988202,136.8,145.4,145.37,34.04465025]
[1746633988369,136.8,145.4,145.36,50.0]
[1746633988370,162.8,145.4,145.38,34.04465025]
[1746633988577,136.8,145.4,145.38,34.04465025]
[1746633989276,136.8,145.4,145.39,34.04465025]
[1746633989482,26.0,145.42,145.39,34.04465025]
[1746633990200,26.0,145.42,145.38,56.87829314]
[1746633990201,26.0,145.42,145.38,84.04465025]
[1746633990504,34.04465025,145.4,145.36,84.04465025]
[1746633990992,34.04465025,145.39,145.34,100.40465025]
[1746633991221,34.04465025,145.38,145.34,66.36]
[1746633991406,34.04465025,145.37,145.34,16.36]
[1746633991576,40.92385986,145.37,145.34,16.36]
[1746633992299,34.04465025,145.35,145.32,50.0]
[1746633992809,162.8,145.36,145.32,50.0]
[1746633992810,196.84465025,145.36,145.32,50.0]
[1746633993001,196.84465025,145.36,145.32,90.92585181]
[1746633993309,196.84465025,145.36,145.32,84.04465025]
[1746633993686,203.72424331,145.36,145.32,84.04465025]
[1746633993893,34.04465025,145.35,145.31,34.04465025]
[1746633994181,170.84465025,145.34,145.3,66.36]
[1746633994398,136.8,145.34,145.3,66.36]
[1746633994704,136.8,145.34,145.3,100.40465025]
[1746633995211,34.04465025,145.33,145.3,16.36]
[1746633995397,34.04465025,145.33,145.28,90.92773216]
[1746633995713,136.8,145.32,145.28,50.0]
[1746633995892,136.8,145.32,145.28,56.88313721]
[1746633996092,143.68144715,145.32,145.28,84.04465025]
[1746633996304,170.84465025,145.32,145.28,56.88321914]
[1746633996484,177.72607653,145.32,145.28,84.04465025]
[1746633997021,177.72607653,145.32,145.26,66.36]
[1746633997022,136.8,145.31,145.26,66.36]
[1746633997201,136.8,145.31,145.28,84.04465025]
[1746633998296,136.8,145.31,145.28,90.92786242]
[1746633998736,136.8,145.31,145.29,34.04465025]
[1746633999517,136.8,145.31,145.28,84.04465025]
[1746633999698,143.68190022,145.31,145.28,84.04465025]
[1746633999898,177.72655047,145.31,145.28,50.0]
[1746634000509,34.04465025,145.3,145.26,66.36]
[1746634000700,34.04465025,145.3,145.26,100.40465025]
[1746634001818,40.92724692,145.3,145.26,100.40465025]
[1746634002493,143.68202508,145.31,145.28,34.04465025]
[1746634003423,136.8,145.31,145.29,34.04465025]
[1746634003810,136.8,145.31,145.3,34.04465025]
[1746634004300,136.8,145.31,145.29,34.04465025]
[1746634004923,136.8,145.31,145.28,90.92753133]
[1746634005621,143.68186578,145.31,145.28,50.0]
[1746634006126,177.72651603,145.31,145.28,50.0]
[1746634006823,177.72651603,145.31,145.27,34.04465025]
[1746634006824,34.04465025,145.3,145.26,66.36]
[1746634006997,34.04465025,145.3,145.26,100.40465025]
[1746634007201,143.68186578,145.31,145.27,34.04465025]
[1746634007525,136.8,145.31,145.29,34.04465025]
[1746634008423,60.04465025,145.33,145.29,40.92743291]
[1746634008629,60.04465025,145.33,145.3,50.0]
[1746634009016,34.04465025,145.32,145.28,84.04465025]
[1746634009402,34.04465025,145.32,145.28,50.0]
[1746634009712,34.04465025,145.32,145.28,84.04465025]
[1746634010437,66.92568473,145.33,145.28,90.92785213]
[1746634010606,66.92568473,145.33,145.29,34.04465025]
[1746634010801,136.8,145.34,145.31,34.04465025]
[1746634011731,26.0,145.35,145.32,84.04465025]
[1746634012229,66.92465564,145.35,145.32,50.0]
[1746634012415,34.04465025,145.34,145.32,50.0]
[1746634013329,66.92465564,145.35,145.32,50.0]
[1746634013759,32.87999402,145.35,145.32,50.0]
[1746634014116,26.0,145.35,145.32,84.04465025]
[1746634014736,143.67908102,145.37,145.33,34.04465025]
[1746634014910,177.72373127,145.37,145.33,32.54465025]
[1746634015228,203.72373127,145.37,145.33,32.54465025]
[1746634015530,34.04465025,145.36,145.32,84.04465025]
[1746634016043,34.04465025,145.35,145.32,50.0]
[1746634016504,34.04465025,145.34,145.31,16.72]
[1746634017009,34.04465025,145.32,145.28,50.0]
[1746634017221,34.04465025,145.3,145.27,14.22]
[1746634017407,160.88312116,145.33,145.27,48.26465025]
[1746634017408,34.04465025,145.31,145.27,48.26465025]
[1746634017619,34.04465025,145.32,145.28,50.0]
[1746634017819,34.04465025,145.32,145.28,84.04465025]
[1746634018020,177.72554201,145.33,145.28,84.04465025]
[1746634018230,170.84465025,145.33,145.29,34.04465025]
[1746634019316,136.8,145.33,145.31,34.04465025]
[1746634019520,136.8,145.33,145.32,84.04465025]
[1746634020435,136.8,145.33,145.32,50.0]
[1746634021039,136.8,145.33,145.3,50.0]
[1746634021528,177.72562681,145.33,145.3,50.0]
[1746634022518,34.04465025,145.32,145.28,50.0]
[1746634022718,34.04465025,145.32,145.28,84.04465025]
[1746634022925,177.72562681,145.33,145.28,84.04465025]
[1746634023127,34.04465025,145.32,145.28,84.04465025]
[1746634023351,177.72562681,145.33,145.29,34.04465025]
[1746634024642,34.04465025,145.32,145.28,50.0]
[1746634024847,34.04465025,145.31,145.28,50.0]
[1746634025147,34.04465025,145.32,145.28,50.0]
[1746634026047,6.88183882,145.31,145.28,50.0]
[1746634026236,6.88183882,145.31,145.27,14.22]
[1746634026237,40.92648907,145.31,145.27,14.22]
[1746634026546,40.92648907,145.31,145.27,48.26465025]
[1746634026928,40.92648907,145.31,145.27,14.22]
[1746634027129,40.92648907,145.31,145.27,48.26465025]
[1746634027439,6.88183882,145.31,145.27,48.26465025]
[1746634027740,40.92648907,145.31,145.27,14.22]
[1746634028044,40.92648907,145.31,145.27,48.26465025]
[1746634028433,40.92648907,145.31,145.27,14.22]
[1746634028633,170.84465025,145.3,145.27,14.22]
[1746634029022,26.0,145.31,145.27,64.22]
[1746634029229,34.04465025,145.3,145.27,50.0]
[1746634029642,66.92670985,145.31,145.27,50.0]
[1746634029947,32.8820596,145.31,145.27,84.04465025]
[1746634030843,26.0,145.31,145.28,34.04465025]
[1746634031052,136.8,145.33,145.3,34.04465025]
[1746634031342,136.8,145.33,145.31,34.04465025]
[1746634031523,136.8,145.33,145.32,34.04465025]
[1746634032329,35.84484864,145.39,145.32,40.92601551]
[1746634032330,143.6792176,145.37,145.32,40.92601551]
[1746634032631,136.8,145.36,145.34,34.04465025]
[1746634034859,26.0,145.38,145.35,84.04465025]
[1746634035230,66.92327225,145.38,145.35,50.0]
[1746634035544,34.04465025,145.37,145.35,50.0]
[1746634036848,40.92369618,145.37,145.35,50.0]
[1746634037233,26.0,145.38,145.35,84.04465025]
[1746634037443,60.04465025,145.38,145.35,50.0]
[1746634037850,26.0,145.38,145.35,84.04465025]
[1746634038144,136.8,145.4,145.35,84.04465025]
[1746634038342,136.8,145.4,145.37,84.04465025]
[1746634038754,136.8,145.4,145.38,34.04465025]
[1746634038927,136.8,145.4,145.37,84.04465025]
[1746634039128,143.6776733,145.4,145.37,84.04465025]
[1746634039330,17.19047948,145.43,145.39,84.04465025]
[1746634039331,6.87635276,145.43,145.39,84.04465025]
[1746634039529,143.67579082,145.44,145.4,34.04465025]
[1746634039826,136.8,145.44,145.41,84.04465025]
[1746634040143,136.8,145.47,145.43,84.04465025]
[1746634040342,136.8,145.47,145.44,34.04465025]
[1746634040649,136.8,145.47,145.43,84.04465025]
[1746634040848,136.8,145.47,145.44,34.04465025]
[1746634041152,136.8,145.47,145.45,84.04465025]
[1746634041346,136.8,145.47,145.45,50.0]
[1746634042029,143.6744826,145.47,145.45,50.0]
[1746634042553,136.8,145.47,145.45,84.04465025]
[1746634042954,136.8,145.47,145.45,50.0]
[1746634043531,136.8,145.47,145.45,84.04465025]
[1746634044151,136.8,145.47,145.46,34.04465025]
[1746634044349,136.8,145.5,145.47,50.0]
[1746634044548,136.8,145.5,145.47,84.04465025]
[1746634044970,136.8,145.5,145.48,34.04465025]
[1746634045650,136.8,145.5,145.47,84.04465025]
[1746634046172,136.8,145.5,145.48,34.04465025]
[1746634046980,136.8,145.5,145.48,40.91835123]
[1746634047183,60.04465025,145.53,145.48,57.83835123]
[1746634047346,136.8,145.54,145.5,84.04465025]
[1746634047543,136.8,145.54,145.51,34.04465025]
[1746634048066,136.8,145.54,145.5,84.04465025]
[1746634049141,136.8,145.54,145.5,50.0]
[1746634049341,170.84465025,145.54,145.5,84.04465025]
[1746634050277,143.67116294,145.54,145.5,50.0]
[1746634050481,34.04465025,145.52,145.5,50.0]
[1746634050681,34.04465025,145.52,145.48,66.92]
[1746634051468,34.04465025,145.51,145.48,66.92]
[1746634051669,34.04465025,145.52,145.48,66.92]
[1746634052171,34.04465025,145.5,145.48,66.92]
[1746634052373,160.84857121,145.54,145.48,66.92]
[1746634052374,34.04465025,145.49,145.48,66.92]
[1746634052668,143.6723799,145.51,145.48,66.92]
[1746634052970,34.04465025,145.5,145.48,16.92]
[1746634053170,34.04465025,145.49,145.48,16.92]
[1746634054060,26.0,145.49,145.48,16.92]
[1746634054265,60.04465025,145.49,145.48,16.92]
[1746634054656,26.0,145.49,145.48,16.92]
[1746634056146,34.04465025,145.5,145.48,16.92]
[1746634056364,203.71720834,145.51,145.48,16.92]
[1746634058077,203.71720834,145.51,145.48,66.92]
[1746634058276,136.8,145.51,145.48,100.96465025]
[1746634059774,136.8,145.51,145.49,34.04465025]
[1746634059966,136.8,145.51,145.48,66.92]
[1746634060154,136.8,145.51,145.48,100.96465025]
[1746634061577,143.6724306,145.51,145.48,100.96465025]
[1746634061884,34.04465025,145.5,145.48,66.92]
[1746634062456,40.91762008,145.5,145.48,66.92]
[1746634063069,6.87296983,145.5,145.48,66.92]
[1746634063275,40.91762008,145.5,145.48,66.92]
[1746634063467,6.87296983,145.5,145.48,66.92]
[1746634064576,40.91762008,145.5,145.48,66.92]
[1746634065288,136.8,145.51,145.48,66.92]
[1746634065466,136.8,145.51,145.48,100.96465025]
[1746634067169,143.67243222,145.51,145.48,100.96465025]
[1746634067878,136.8,145.51,145.49,34.04465025]
[1746634068070,143.67258011,145.51,145.49,34.04465025]
[1746634069106,143.67258011,145.51,145.48,66.92]
[1746634069265,143.67258011,145.51,145.48,100.96465025]
[1746634071204,177.71723036,145.51,145.48,66.92]
[1746634071383,34.04465025,145.5,145.48,50.0]
[1746634072006,34.04465025,145.49,145.46,66.92]